fUSD/lending_fUSD_20260115
["ID","MTS","AMOUNT","RATE_DAILY","PERIOD"]
[402045471,1768493448328,-500.0,0.00038356,30]
[402045472,1768493448337,-502.80481364,0.00038356,30]
[402045473,1768493448346,-500.0,0.00038356,30]
[402045474,1768493448355,-502.18394972,0.00038356,30]
[402045475,1768493448364,-500.0,0.00038356,30]
[402045476,1768493448374,-500.0,0.00038356,30]
[402045477,1768493448383,-500.0,0.00038356,30]
[402045478,1768493448392,-536.18,0.00038356,30]
[402045479,1768493448401,-500.0,0.00038356,30]
[402045480,1768493448411,-500.0,0.00038356,30]
[402045481,1768493448420,-768.9,0.00038356,30]
[402045482,1768493448429,-500.0,0.00038356,30]
[402045483,1768493448438,-500.0,0.00038356,30]
[402045484,1768493448448,-500.0,0.00038356,30]
[402045485,1768493448457,-1426.94,0.00038356,30]
[402045486,1768493448467,-500.0,0.00038356,30]
[402045487,1768493448476,-500.0,0.00038356,30]
[402045488,1768493448486,-500.0,0.00038356,30]
[402045489,1768493448495,-500.0,0.00038356,30]
[402045490,1768493448505,-816.0,0.00038356,30]
[402045491,1768493448514,-500.0,0.00038356,30]
[402045492,1768493448524,-957.76,0.00038356,30]
[402045493,1768493448533,-500.0,0.00038356,30]
[402045494,1768493448543,-500.0,0.00038356,30]
[402045495,1768493448552,-500.0,0.00038356,30]
[402045496,1768493448562,-500.0,0.00038356,30]
[402045497,1768493448571,-500.0,0.00038356,30]
[402045498,1768493448581,-500.0,0.00038356,30]
[402045499,1768493448591,-500.0,0.00038356,30]
[402045500,1768493448600,-500.0,0.00038356,30]
[402045501,1768493448610,-563.87,0.00038356,30]
[402045502,1768493448620,-991.76,0.00038356,30]
[402045503,1768493448630,-500.0,0.00038356,30]
[402045504,1768493448639,-500.0,0.00038356,30]
[402045505,1768493448649,-1218.92,0.00038356,30]
[402045506,1768493448658,-500.0,0.00038356,30]
[402045507,1768493448667,-851.06,0.00038356,30]
[402045508,1768493448676,-500.0,0.00038356,30]
[402045509,1768493448686,-500.0,0.00038356,30]
[402045510,1768493448696,-500.0,0.00038356,30]
[402045511,1768493448705,-734.83,0.00038356,30]
[402045512,1768493448715,-564.14,0.00038356,30]
[402045513,1768493448725,-544.18,0.00038356,30]
[402045514,1768493448734,-500.0,0.00038356,30]
[402045515,1768493448744,-500.0,0.00038356,30]
[402045516,1768493448753,-500.0,0.00038356,30]
[402045517,1768493448763,-510.20270378,0.00038356,30]
[402045518,1768493448773,-599.45,0.00038356,30]
[402045519,1768493448783,-500.0,0.00038356,30]
[402045520,1768493448792,-500.0,0.00038356,30]
[402045521,1768493448802,-500.0,0.00038356,30]
[402045522,1768493448811,-500.0,0.00038356,30]
[402045523,1768493448821,-500.0,0.00038356,30]
[402045524,1768493448830,-508.82465601,0.00038356,30]
[402045525,1768493448839,-500.0,0.00038356,30]
[402045526,1768493448849,-500.0,0.00038356,30]
[402045527,1768493448859,-500.0,0.00038356,30]
[402045528,1768493448869,-500.0,0.00038356,30]
[402045529,1768493448879,-271.56933698,0.00038356,30]
[402045530,1768493448888,-500.0,0.00038356,30]
[402045531,1768493448899,-500.0,0.00038356,30]
[402045532,1768493448908,-500.0,0.00038356,30]
[402045533,1768493448918,-1275.02,0.00038356,30]
[402045534,1768493448930,-982.68,0.00038356,30]
[402045535,1768493448946,-500.0,0.00038356,30]
[402045536,1768493448960,-500.0,0.00038356,30]
[402045537,1768493448972,-500.0,0.00038356,2]
[402045538,1768493448984,-500.0,0.00038356,30]
[402045539,1768493448996,-1033.89,0.00038356,30]
[402045540,1768493449010,-535.78,0.00038356,30]
[402045541,1768493449022,-518.71672915,0.00038356,30]
[402045542,1768493449035,-500.0,0.00038356,30]
[402045543,1768493449048,-728.0,0.00038356,30]
[402045544,1768493449066,-500.0,0.00038356,30]
[402045545,1768493449079,-500.0,0.00038356,30]
[402045546,1768493449091,-760.44,0.00038356,30]
[402045547,1768493449102,-1097.38,0.00038356,30]
[402045548,1768493449115,-793.41,0.00038356,30]
[402045549,1768493449129,-500.0,0.00038356,30]
[402045550,1768493449142,-500.0,0.00038356,30]
[402045551,1768493449155,-661.32,0.00038356,30]
[402045552,1768493449169,-1128.13,0.00038356,30]
[402045553,1768493449182,-500.0,0.00038356,30]
[402045554,1768493449195,-547.3,0.00038356,30]
[402045555,1768493449207,-500.0,0.00038356,30]
[402045556,1768493449218,-500.0,0.00038356,30]
[402045557,1768493449232,-500.0,0.00038356,30]
[402045558,1768493449244,-500.0,0.00038356,30]
[402045559,1768493449257,-609.45,0.00038356,30]
[402045560,1768493449269,-736.43,0.00038356,30]
[402045561,1768493449281,-902.73,0.00038356,30]
[402045562,1768493449294,-1256.08,0.00038356,30]
[402045563,1768493449307,-500.0,0.00038356,30]
[402045564,1768493449321,-500.0,0.00038356,30]
[402045565,1768493449333,-500.0,0.00038356,30]
[402045566,1768493449345,-500.0,0.00038356,30]
[402045567,1768493449357,-500.0,0.00038356,30]
[402045568,1768493449367,-500.0,0.00038356,30]
[402045569,1768493449378,-525.26,0.00038356,30]
[402045570,1768493449390,-791.0,0.00038356,30]
[402045571,1768493449404,-749.95,0.00038356,30]
[402045572,1768493449417,-525.82683796,0.00038356,30]
[402045573,1768493449429,-500.0,0.00038356,30]
[402045574,1768493449439,-500.0,0.00038356,30]
[402045575,1768493449450,-951.94,0.00038356,30]
[402045576,1768493449462,-500.0,0.00038356,30]
[402045577,1768493449476,-500.0,0.00038356,30]
[402045578,1768493449488,-543.34,0.00038356,30]
[402045579,1768493449500,-500.0,0.00038356,30]
[402045580,1768493449510,-500.0,0.00038356,30]
[402045581,1768493449521,-500.0,0.00038356,30]
[402045582,1768493449533,-500.0,0.00038356,30]
[402045583,1768493449545,-947.62,0.00038356,30]
[402045584,1768493449557,-500.0,0.00038356,30]
[402045585,1768493449569,-658.72,0.00038356,30]
[402045586,1768493449580,-500.0,0.00038356,30]
[402045587,1768493449592,-876.88,0.00038356,30]
[402045588,1768493449604,-500.0,0.00038356,30]
[402045589,1768493449616,-1412.63,0.00038356,30]
[402045590,1768493449629,-500.0,0.00038356,30]
[402045591,1768493449647,-569.15,0.00038356,30]
[402045592,1768493449659,-500.0,0.00038356,30]
[402045593,1768493449671,-500.0,0.00038356,30]
[402045594,1768493449683,-500.0,0.00038356,30]
[402045595,1768493449695,-500.0,0.00038356,30]
[402045596,1768493449707,-500.0,0.00038356,30]
[402045597,1768493449719,-500.0,0.00038356,30]
[402045598,1768493449731,-579.17,0.00038356,30]
[402045599,1768493449743,-753.92,0.00038356,30]
[402045600,1768493449755,-500.0,0.00038356,30]
[402045601,1768493449767,-500.0,0.00038356,30]
[402045602,1768493449779,-500.0,0.00038356,30]
[402045603,1768493449791,-500.0,0.00038356,30]
[402045604,1768493449803,-646.59,0.00038356,30]
[402045605,1768493449815,-1209.06,0.00038356,30]
[402045606,1768493449826,-615.98,0.00038356,30]
[402045607,1768493449838,-500.0,0.00038356,30]
[402045608,1768493449850,-501.52,0.00038356,30]
[402045609,1768493449862,-871.69,0.00038356,30]
[402045610,1768493449874,-630.11,0.00038356,30]
[402045611,1768493449885,-500.0,0.00038356,30]
[402045612,1768493449897,-500.0,0.00038356,30]
[402045613,1768493449908,-500.0,0.00038356,30]
[402045614,1768493449920,-500.0,0.00038356,30]
[402045615,1768493449931,-1488.85,0.00038356,30]
[402045616,1768493449943,-1083.23,0.00038356,30]
[402045617,1768493449954,-699.32,0.00038356,30]
[402045618,1768493449965,-500.0,0.00038356,30]
[402045619,1768493449977,-673.04,0.00038356,30]
[402045620,1768493449988,-500.0,0.00038356,30]
[402045621,1768493449999,-724.19,0.00038356,30]
[402045622,1768493450011,-979.99,0.00038356,30]
[402045623,1768493450022,-1184.63,0.00038356,30]
[402045624,1768493450033,-500.0,0.00038356,30]
[402045625,1768493450046,-500.0,0.00038356,30]
[402045626,1768493450059,-500.0,0.00038356,30]
[402045627,1768493450071,-500.0,0.00038356,30]
[402045628,1768493450082,-552.1,0.00038356,30]
[402045629,1768493450093,-500.0,0.00038356,30]
[402045630,1768493450106,-567.99884223,0.00038356,30]
[402045631,1768493450117,-556.36,0.00038356,30]
[402045632,1768493450130,-500.0,0.00038356,30]
[402045633,1768493450141,-500.0,0.00038356,30]
[402045634,1768493450155,-954.27,0.00038356,30]
[402045635,1768493450167,-500.0,0.00038356,30]
[402045636,1768493450178,-529.56,0.00038356,30]
[402045637,1768493450189,-500.0,0.00038356,30]
[402045638,1768493450200,-562.59,0.00038356,30]
[402045639,1768493450211,-1295.14,0.00038356,30]
[402045640,1768493450223,-500.0,0.00038356,30]
[402045641,1768493450234,-587.1,0.00038356,30]
[402045642,1768493450245,-500.0,0.00038356,30]
[402045643,1768493450256,-1193.96,0.00038356,30]
[402045644,1768493450268,-500.0,0.00038356,30]
[402045645,1768493450285,-500.0,0.00038356,30]
[402045646,1768493450298,-500.0,0.00038356,30]
[402045647,1768493450311,-500.0,0.00038356,30]
[402045648,1768493450324,-500.0,0.00038356,30]
[402045649,1768493450336,-506.36,0.00038356,30]
[402045650,1768493450350,-500.0,0.00038356,30]
[402045651,1768493450362,-500.0,0.00038356,30]
[402045652,1768493450374,-500.0,0.00038356,30]
[402045653,1768493450387,-998.86,0.00038356,30]
[402045654,1768493450400,-500.0,0.00038356,30]
[402045655,1768493450413,-500.0,0.00038356,30]
[402045656,1768493450425,-500.0,0.00038356,30]
[402045657,1768493450437,-562.64,0.00038356,30]
[402045658,1768493450451,-500.0,0.00038356,30]
[402045659,1768493450462,-500.0,0.00038356,30]
[402045660,1768493450474,-757.13,0.00038356,30]
[402045661,1768493450486,-500.0,0.00038356,30]
[402045662,1768493450497,-500.0,0.00038356,30]
[402045663,1768493450509,-520.07,0.00038356,30]
[402045664,1768493450522,-500.0,0.00038356,30]
[402045665,1768493450534,-634.49,0.00038356,30]
[402045666,1768493450546,-1148.22,0.00038356,30]
[402045667,1768493450558,-591.22,0.00038356,30]
[402045668,1768493450570,-500.0,0.00038356,30]
[402045669,1768493450581,-500.0,0.00038356,30]
[402045670,1768493450592,-500.0,0.00038356,30]
[402045671,1768493450604,-500.0,0.00038356,14]
[402045672,1768493450617,-500.0,0.00038356,30]
[402045673,1768493450629,-500.0,0.00038356,30]
[402045674,1768493450640,-951.93,0.00038356,30]
[402045675,1768493450652,-1269.76,0.00038356,30]
[402045676,1768493450664,-825.82,0.00038356,30]
[402045677,1768493450675,-1158.65,0.00038356,30]
[402045678,1768493450686,-500.0,0.00038356,30]
[402045679,1768493450698,-843.5,0.00038356,30]
[402045680,1768493450709,-500.0,0.00038356,30]
[402045681,1768493450720,-500.0,0.00038356,30]
[402045682,1768493450732,-812.53,0.00038356,30]
[402045683,1768493450743,-500.0,0.00038356,30]
[402045684,1768493450755,-644.24,0.00038356,2]
[402045685,1768493450766,-500.0,0.00038356,30]
[402045686,1768493450777,-500.0,0.00038356,30]
[402045687,1768493450792,-500.0,0.00038356,30]
[402045688,1768493450805,-517.42,0.00038356,30]
[402045689,1768493450817,-848.17,0.00038356,30]
[402045690,1768493450829,-983.09,0.00038356,30]
[402045691,1768493450843,-500.0,0.00038356,30]
[402045692,1768493450854,-500.0,0.00038356,30]
[402045693,1768493450867,-598.95,0.00038356,30]
[402045694,1768493450879,-500.0,0.00038356,30]
[402045695,1768493450892,-500.0,0.00038356,30]
[402045696,1768493450903,-500.0,0.00038356,30]
[402045697,1768493450915,-500.0,0.00038356,30]
[402045698,1768493450928,-827.29,0.00038356,30]
[402045699,1768493450940,-1642.86,0.00038356,30]
[402045700,1768493450951,-500.0,0.00038356,30]
[402045701,1768493450963,-500.0,0.00038356,30]
[402045702,1768493450975,-541.55,0.00038356,30]
[402045703,1768493450987,-500.0,0.00038356,30]
[402045704,1768493450999,-500.0,0.00038356,30]
[402045705,1768493451010,-500.0,0.00038356,30]
[402045706,1768493451022,-500.0,0.00038356,30]
[402045707,1768493451034,-1000.0,0.00038356,30]
[402045708,1768493451047,-500.0,0.00038356,30]
[402045709,1768493451062,-500.0,0.00038356,30]
[402045710,1768493451075,-500.0,0.00038356,30]
[402045711,1768493451087,-500.0,0.00038356,30]
[402045712,1768493451099,-661.76,0.00038356,30]
[402045713,1768493451111,-500.0,0.00038356,30]
[402045714,1768493451123,-509.5,0.00038356,30]
[402045715,1768493451136,-500.0,0.00038356,30]
[402045716,1768493451147,-500.0,0.00038356,30]
[402045717,1768493451163,-609.13,0.00038356,30]
[402045718,1768493451176,-794.37,0.00038356,30]
[402045719,1768493451189,-2033.95,0.00038356,30]
[402045720,1768493451202,-876.54,0.00038356,30]
[402045721,1768493451214,-300.0,0.00038356,30]
[402045722,1768493451227,-500.0,0.00038356,30]
[402045723,1768493451241,-500.0,0.00038356,30]
[402045724,1768493451255,-754.36,0.00038356,30]
[402045725,1768493451268,-594.86,0.00038356,30]
[402045726,1768493451281,-829.16,0.00038356,30]
[402045727,1768493451296,-601.87,0.00038356,30]
[402045728,1768493451308,-500.0,0.00038356,30]
[402045729,1768493451320,-583.58,0.00038356,30]
[402045730,1768493451332,-500.0,0.00038356,30]
[402045731,1768493451343,-500.0,0.00038356,30]
[402045732,1768493451355,-500.0,0.00038356,30]
[402045733,1768493451367,-591.59,0.00038356,30]
[402045734,1768493451378,-503.41,0.00038356,30]
[402045735,1768493451389,-598.46,0.00038356,30]
[402045736,1768493451401,-500.0,0.00038356,30]
[402045737,1768493451412,-500.0,0.00038356,30]
[402045738,1768493451424,-151.268681,0.00038356,30]
[402045739,1768493451435,-179.128212,0.00038356,30]
[402045740,1768493451448,-500.0,0.00038356,30]
[402045741,1768493451459,-554.28,0.00038356,30]
[402045742,1768493451471,-500.0,0.00038356,14]
[402045743,1768493451483,-550.44,0.00038356,30]
[402045744,1768493451496,-500.0,0.00038356,30]
[402045745,1768493451507,-500.0,0.00038356,30]
[402045746,1768493451524,-980.05,0.00038356,30]
[402045747,1768493451536,-798.32,0.00038356,30]
[402045748,1768493451550,-500.0,0.00038356,30]
[402045749,1768493451563,-1004.92,0.00038356,30]
[402045750,1768493451574,-500.0,0.00038356,30]
[402045751,1768493451586,-1048.7,0.00038356,30]
[402045752,1768493451598,-999.72,0.00038356,30]
[402045753,1768493451610,-964.5,0.00038356,30]
[402045754,1768493451623,-500.0,0.00038356,30]
[402045755,1768493451634,-500.0,0.00038356,30]
[402045756,1768493451646,-925.16,0.00038356,30]
[402045757,1768493451658,-915.52,0.00038356,30]
[402045758,1768493451670,-500.0,0.00038356,30]
[402045759,1768493451682,-1492.15,0.00038356,30]
[402045760,1768493451695,-753.25,0.00038356,30]
[402045761,1768493451707,-500.0,0.00038356,30]
[402045762,1768493451718,-500.0,0.00038356,30]
[402045763,1768493451730,-1131.41,0.00038356,30]
[402045764,1768493451742,-500.0,0.00038356,30]
[402045765,1768493451753,-500.0,0.00038356,30]
[402045766,1768493451765,-500.0,0.00038356,30]
[402045767,1768493451777,-703.98,0.00038356,30]
[402045768,1768493451791,-1007.34,0.00038356,30]
[402045769,1768493451805,-513.0122503,0.00038356,30]
[402045770,1768493451817,-500.0,0.00038356,30]
[402045771,1768493451830,-1566.96,0.00038356,30]
[402045772,1768493451842,-1425.44,0.00038356,30]
[402045773,1768493451854,-208.67770257,0.00038356,30]
[402045774,1768493451865,-500.0,0.00038356,120]
[402045775,1768493451877,-500.0,0.00038356,30]
[402045776,1768493451892,-222.07270551,0.00038356,30]
[402045777,1768493451903,-500.0,0.00038356,30]
[402045778,1768493451914,-500.0,0.00038356,30]
[402045779,1768493451927,-500.0,0.00038356,30]
[402045780,1768493451938,-500.0,0.00038356,30]
[402045781,1768493451949,-579.05,0.00038356,30]
[402045782,1768493451960,-500.0,0.00038356,30]
[402045783,1768493451972,-500.0,0.00038356,30]
[402045784,1768493451984,-963.7,0.00038356,30]
[402045785,1768493451996,-501.99805051,0.00038356,30]
[402045786,1768493452008,-912.5,0.00038356,30]
[402045787,1768493452022,-717.44,0.00038356,30]
[402045788,1768493452036,-779.28,0.00038356,30]
[402045789,1768493452054,-500.0,0.00038356,30]
[402045790,1768493452067,-500.0,0.00038356,30]
[402045791,1768493452077,-615.37,0.00038356,30]
[402045792,1768493452087,-920.21,0.00038356,30]
[402045793,1768493452097,-500.0,0.00038356,30]
[402045794,1768493452107,-737.22,0.00038356,30]
[402045795,1768493452118,-859.38,0.00038356,30]
[402045796,1768493452127,-650.02,0.00038356,30]
[402045797,1768493452140,-736.25,0.00038356,30]
[402045798,1768493452150,-541.75,0.00038356,30]
[402045799,1768493452160,-500.0,0.00038356,30]
[402045800,1768493452170,-150.978528,0.00038356,30]
[402045801,1768493452179,-500.0,0.00038356,30]
[402045802,1768493452188,-500.0,0.00038356,30]
[402045803,1768493452198,-619.36554884,0.00038356,30]
[402045804,1768493452207,-526.16,0.00038356,30]
[402045805,1768493452216,-500.0,0.00038356,30]
[402045806,1768493452227,-500.0,0.00038356,30]
[402045807,1768493452238,-1196.07,0.00038356,30]
[402045808,1768493452248,-538.21,0.00038356,30]
[402045809,1768493452736,-509.97,0.00038356,30]
[402045810,1768493452771,-500.0,0.00038356,30]
[402045811,1768493452796,-927.72,0.00038356,30]
[402045812,1768493452811,-681.91,0.00038356,30]
[402045813,1768493452820,-944.18,0.00038356,30]
[402045814,1768493452830,-374.56156893,0.00038356,30]
[402045815,1768493452840,-500.0,0.00038356,30]
[402045816,1768493452849,-381.24825438,0.00038356,30]
[402045817,1768493452858,-500.0,0.00038356,30]
[402045818,1768493452867,-434.98123192,0.00038356,30]
[402045819,1768493452887,-500.0,0.00038356,30]
[402045820,1768493452898,-500.0,0.00038356,30]
[402045821,1768493452908,-500.0,0.00038356,30]
[402045822,1768493452918,-1218.77,0.00038356,30]
[402045823,1768493452928,-500.0,0.00038356,30]
[402045824,1768493452938,-779.19,0.00038356,30]
[402045825,1768493452948,-500.0,0.00038356,30]
[402045826,1768493452957,-967.52,0.00038356,30]
[402045827,1768493452967,-500.0,0.00038356,30]
[402045828,1768493452976,-500.0,0.00038356,30]
[402045829,1768493452986,-500.0,0.00038356,30]
[402045830,1768493452996,-555.47,0.00038356,30]
[402045831,1768493453006,-1303.25,0.00038356,30]
[402045832,1768493453016,-555.94,0.00038356,30]
[402045833,1768493453026,-500.0,0.00038356,30]
[402045834,1768493453036,-500.0,0.00038356,30]
[402045835,1768493453048,-500.0,0.00038356,30]
[402045836,1768493453061,-996.31,0.00038356,30]
[402045837,1768493453071,-1005.12,0.00038356,30]
[402045838,1768493453081,-500.0,0.00038356,30]
[402045839,1768493453092,-1223.56,0.00038356,30]
[402045840,1768493453103,-500.0,0.00038356,30]
[402045841,1768493453114,-988.34,0.00038356,30]
[402045842,1768493453125,-500.0,0.00038356,30]
[402045843,1768493453137,-500.0,0.00038356,30]
[402045844,1768493453148,-500.0,0.00038356,30]
[402045845,1768493453158,-1004.29,0.00038356,30]
[402045846,1768493453169,-500.0,0.00038356,30]
[402045847,1768493453179,-500.0,0.00038356,30]
[402045848,1768493453190,-500.0,0.00038356,30]
[402045849,1768493453201,-500.0,0.00038356,30]
[402045850,1768493453212,-500.0,0.00038356,30]
[402045851,1768493453223,-500.0,0.00038356,30]
[402045852,1768493453234,-664.17,0.00038356,30]
[402045853,1768493453245,-500.0,0.00038356,30]
[402045854,1768493453255,-500.0,0.00038356,30]
[402045855,1768493453265,-1012.84,0.00038356,30]
[402045856,1768493453275,-500.0,0.00038356,30]
[402045857,1768493453285,-500.0,0.00038356,30]
[402045858,1768493453299,-500.0,0.00038356,30]
[402045859,1768493453310,-500.0,0.00038356,30]
[402045860,1768493453319,-500.0,0.00038356,30]
[402045861,1768493453329,-500.0,0.00038356,30]
[402045862,1768493453339,-326.29381343,0.00038356,30]
[402045863,1768493453349,-500.0,0.00038356,30]
[402045864,1768493453359,-628.64286479,0.00038356,30]
[402045865,1768493453368,-500.0,0.00038356,30]
[402045866,1768493453378,-271.37,0.00038356,14]
[402045867,1768493453388,-500.0,0.00038356,30]
[402045868,1768493453398,-500.0,0.00038356,30]
[402045869,1768493453408,-500.0,0.00038356,30]
[402045870,1768493453418,-500.0,0.00038356,30]
[402045871,1768493453428,-497.58215118,0.00038356,30]
[402045872,1768493453438,-500.0,0.00038356,30]
[402045873,1768493453448,-500.0,0.00038356,30]
[402045874,1768493453457,-1090.84,0.00038356,30]
[402045875,1768493453467,-500.0,0.00038356,30]
[402045876,1768493453477,-500.0,0.00038356,30]
[402045877,1768493453486,-1033.54,0.00038356,30]
[402045878,1768493453496,-500.0,0.00038356,30]
[402045879,1768493453506,-500.0,0.00038356,30]
[402045880,1768493453515,-500.0,0.00038356,30]
[402045881,1768493453524,-899.71,0.00038356,30]
[402045882,1768493453534,-500.0,0.00038356,30]
[402045883,1768493453544,-500.0,0.00038356,30]
[402045884,1768493453554,-300.0,0.00038356,2]
[402045885,1768493453563,-500.0,0.00038356,30]
[402045886,1768493453574,-1094.88,0.00038356,30]
[402045887,1768493453583,-500.0,0.00038356,30]
[402045888,1768493453594,-1432.67,0.00038356,30]
[402045889,1768493453604,-1229.6,0.00038356,30]
[402045890,1768493453613,-500.0,0.00038356,30]
[402045891,1768493453624,-500.0,0.00038356,30]
[402045892,1768493453633,-500.0,0.00038356,30]
[402045893,1768493453643,-500.0,0.00038356,30]
[402045894,1768493453653,-500.0,0.00038356,30]
[402045895,1768493453663,-881.45,0.00038356,30]
[402045896,1768493453673,-500.0,0.00038356,30]
[402045897,1768493453683,-510.32,0.00038356,30]
[402045898,1768493453694,-500.0,0.00038356,30]
[402045899,1768493453704,-500.0,0.00038356,30]
[402045900,1768493453714,-500.0,0.00038356,30]
[402045901,1768493453724,-928.18,0.00038356,30]
[402045902,1768493453735,-502.6,0.00038356,30]
[402045903,1768493453744,-500.0,0.00038356,30]
[402045904,1768493453754,-500.0,0.00038356,30]
[402045905,1768493453765,-1680.55,0.00038356,30]
[402045906,1768493453775,-500.0,0.00038356,30]
[402045907,1768493453785,-500.0,0.00038356,30]
[402045908,1768493453796,-920.7,0.00038356,30]
[402045909,1768493453807,-500.0,0.00038356,30]
[402045910,1768493453817,-578.34,0.00038356,30]
[402045911,1768493453828,-500.0,0.00038356,30]
[402045912,1768493453839,-765.29,0.00038356,30]
[402045913,1768493453850,-500.0,0.00038356,30]
[402045914,1768493453860,-1095.13,0.00038356,30]
[402045915,1768493453870,-359.6225464,0.00038356,30]
[402045916,1768493453880,-500.0,0.00038356,30]
[402045917,1768493453890,-500.0,0.00038356,30]
[402045918,1768493453900,-500.0,0.00038356,30]
[402045919,1768493453910,-1194.08,0.00038356,30]
[402045920,1768493453921,-500.0,0.00038356,30]
[402045921,1768493453931,-500.0,0.00038356,30]
[402045922,1768493453941,-1721.9,0.00038356,30]
[402045923,1768493453951,-500.0,0.00038356,30]
[402045924,1768493453961,-500.0,0.00038356,30]
[402045925,1768493453971,-500.0,0.00038356,30]
[402045926,1768493453981,-500.0,0.00038356,30]
[402045927,1768493453991,-500.0,0.00038356,30]
[402045928,1768493454001,-500.0,0.00038356,30]
[402045929,1768493454011,-711.39,0.00038356,30]
[402045930,1768493454021,-979.85,0.00038356,30]
[402045931,1768493454032,-644.6,0.00038356,30]
[402045932,1768493454043,-578.16283336,0.00038356,30]
[402045933,1768493454053,-1131.55,0.00038356,30]
[402045934,1768493454068,-500.0,0.00038356,30]
[402045935,1768493454078,-500.0,0.00038356,30]
[402045936,1768493454087,-500.0,0.00038356,30]
[402045937,1768493454097,-500.89,0.00038356,30]
[402045938,1768493454107,-500.0,0.00038356,30]
[402045939,1768493454117,-1434.56,0.00038356,30]
[402045940,1768493454128,-500.0,0.00038356,30]
[402045941,1768493454139,-502.84,0.00038356,30]
[402045942,1768493454149,-500.0,0.00038356,30]
[402045943,1768493454158,-1042.53,0.00038356,30]
[402045944,1768493454168,-895.6,0.00038356,30]
[402045945,1768493454178,-512.69727589,0.00038356,30]
[402045946,1768493454188,-1062.05,0.00038356,30]
[402045947,1768493454198,-958.09,0.00038356,30]
[402045948,1768493454207,-500.0,0.00038356,30]
[402045949,1768493454218,-500.0,0.00038356,30]
[402045950,1768493454228,-558.58,0.00038356,30]
[402045951,1768493454238,-467.1877639,0.00038356,30]
[402045952,1768493454248,-501.68864759,0.00038356,30]
[402045953,1768493454258,-500.0,0.00038356,30]
[402045954,1768493454269,-500.0,0.00038356,30]
[402045955,1768493454278,-500.0,0.00038356,30]
[402045956,1768493454288,-500.0,0.00038356,30]
[402045957,1768493454299,-500.0,0.00038356,30]
[402045958,1768493454309,-1891.27,0.00038356,30]
[402045959,1768493454319,-500.0,0.00038356,30]
[402045960,1768493454329,-500.0,0.00038356,30]
[402045961,1768493454339,-552.88,0.00038356,30]
[402045962,1768493454349,-500.0,0.00038356,30]
[402045963,1768493454359,-500.0,0.00038356,30]
[402045964,1768493454368,-692.3,0.00038356,30]
[402045965,1768493454378,-500.0,0.00038356,30]
[402045966,1768493454388,-1028.78,0.00038356,30]
[402045967,1768493454397,-569.43,0.00038356,30]
[402045968,1768493454407,-500.0,0.00038356,30]
[402045969,1768493454417,-500.0,0.00038356,30]
[402045970,1768493454426,-448.71862342,0.00038356,30]